bitfinex/quotes_BTCUSD_20251025
["timestamp","ask_amount","ask_price","bid_price","bid_amount"]
[1761358104484,4.22596318,111160.0,111150.0,0.00215614]
[1761358111708,0.60973984,111160.0,111150.0,0.00215614]
[1761358111940,0.8280325,111160.0,111150.0,0.00215614]
[1761358112122,1.13614417,111160.0,111150.0,0.00215614]
[1761358114269,0.8280325,111160.0,111150.0,0.00215614]
[1761358117233,1.13614417,111160.0,111150.0,0.00215614]
[1761358119298,1.16045501,111160.0,111150.0,0.00215614]
[1761358122534,1.13614417,111160.0,111150.0,0.00215614]
[1761358124257,1.16045501,111160.0,111150.0,0.00215614]
[1761358125094,0.54423167,111160.0,111150.0,0.00215614]
[1761358125419,1.2370192,111160.0,111150.0,0.00215614]
[1761358125650,4.00177807,111160.0,111150.0,1e-08]
[1761358125892,0.1799856,111120.0,111110.0,0.03497667]
[1761358126114,0.1799856,111120.0,111110.0,0.12528745]
[1761358126571,0.1799856,111120.0,111110.0,0.15232177]
[1761358127026,0.48809727,111120.0,111110.0,0.15232177]
[1761358127494,0.48809727,111120.0,111110.0,0.15832177]
[1761358127808,0.48809727,111120.0,111110.0,0.16032177]
[1761358128021,0.1799856,111120.0,111110.0,0.16032177]
[1761358129439,0.1799856,111120.0,111110.0,0.12809747]
[1761358130075,0.48809727,111120.0,111110.0,0.12809747]
[1761358136216,0.1799856,111120.0,111110.0,0.12809747]
[1761358136451,0.48809727,111120.0,111110.0,0.12809747]
[1761358142691,0.1799856,111120.0,111110.0,0.12809747]
[1761358142830,0.48809727,111120.0,111110.0,0.12809747]
[1761358147897,0.48809727,111120.0,111110.0,0.03827846]
[1761358148121,0.79620894,111120.0,111110.0,0.03827846]
[1761358148527,0.79620894,111120.0,111110.0,0.01124414]
[1761358149058,1.13620894,111120.0,111110.0,0.00924414]
[1761358149243,1.13620894,111120.0,111110.0,0.00324414]
[1761358149448,1.16324779,111120.0,111110.0,0.00824414]
[1761358149606,1.16324779,111120.0,111110.0,0.00424414]
[1761358149821,1.16324779,111120.0,111110.0,0.00324414]
[1761358150050,1.16324779,111120.0,111110.0,0.00524414]
[1761358150235,1.16324779,111120.0,111110.0,0.00624414]
[1761358154772,0.85527277,111120.0,111110.0,0.00624414]
[1761358170476,0.54702445,111120.0,111110.0,0.00624414]
[1761358170917,0.85527277,111120.0,111110.0,0.00624414]
[1761358185424,0.82823392,111120.0,111110.0,0.00624414]
[1761358189918,0.5199856,111120.0,111110.0,0.00624414]
[1761358190078,0.82823392,111120.0,111110.0,0.00624414]
[1761358216921,1.13644378,111120.0,111110.0,0.00624414]
[1761358245857,1.16348263,111120.0,111110.0,0.00624414]
[1761358270368,0.54702445,111120.0,111110.0,0.00624414]
[1761358270577,1.16348263,111120.0,111110.0,0.00624414]
[1761358278861,1.16358165,111120.0,111110.0,0.00624414]
[1761358279068,1.16358165,111120.0,111110.0,0.00349177]
[1761358279254,1.16358165,111120.0,111110.0,0.00624414]
[1761358279928,0.85530305,111120.0,111110.0,0.00624414]
[1761358284277,0.54702445,111120.0,111110.0,0.00624414]
[1761358284650,0.85530305,111120.0,111110.0,0.00624414]
[1761358285600,1.16358165,111120.0,111110.0,0.00624414]
[1761358285799,4.25340066,111120.0,111110.0,0.00624414]
[1761358286540,4.27765212,111120.0,111110.0,0.00524414]
[1761358286961,4.27765212,111120.0,111110.0,0.00624414]
[1761358287170,4.27765212,111120.0,111110.0,0.00424414]
[1761358291373,4.27765212,111120.0,111110.0,0.00324414]
[1761358291593,4.31007936,111120.0,111110.0,0.00324414]
[1761358292026,4.31107936,111120.0,111110.0,0.00324414]
[1761358292249,4.27865212,111120.0,111110.0,0.00324414]
[1761358292484,4.31107936,111120.0,111110.0,0.00324414]
[1761358293196,4.27865212,111120.0,111110.0,0.00324414]
[1761358297539,4.36847113,111120.0,111110.0,0.00324414]
[1761358298452,4.27865212,111120.0,111110.0,0.00324414]
[1761358305529,4.27865212,111120.0,111110.0,1e-08]
[1761358305735,4.42925691,111120.0,111110.0,1e-08]
[1761358305935,4.41622395,111120.0,111110.0,1e-08]
[1761358306210,4.41812392,111120.0,111110.0,1e-08]
[1761358306421,4.39093544,111120.0,111110.0,1e-08]
[1761358306629,4.48075445,111120.0,111110.0,1e-08]
[1761358306831,4.47975445,111120.0,111110.0,1e-08]
[1761358307031,4.54696629,111120.0,111110.0,1e-08]
[1761358307441,4.54996629,111120.0,111110.0,1e-08]
[1761358309520,4.57715477,111120.0,111110.0,1e-08]
[1761358310837,3.93340909,111120.0,111110.0,1e-08]
[1761358311042,4.54996629,111120.0,111110.0,1e-08]
[1761358313880,4.57715477,111120.0,111110.0,1e-08]
[1761358318448,4.54483741,111120.0,111110.0,1e-08]
[1761358325687,0.5200342,111090.0,111080.0,0.0004]
[1761358325962,0.5200342,111090.0,111080.0,0.00048535]
[1761358325963,0.84770708,111090.0,111080.0,0.00048535]
[1761358326370,0.8283128,111090.0,111080.0,0.00048535]
[1761358327147,0.83719609,111090.0,111080.0,0.00148535]
[1761358328408,0.63330001,111090.0,111080.0,0.00148535]
[1761358328624,0.80445092,111090.0,111080.0,0.00148535]
[1761358331039,0.81354014,111090.0,111080.0,0.00148535]
[1761358331240,0.81354014,111090.0,111080.0,0.00250347]
[1761358332686,0.80445092,111090.0,111080.0,0.00250347]
[1761358333053,0.82384205,111090.0,111080.0,0.00250347]
[1761358334426,0.83307121,111090.0,111080.0,0.00250347]
[1761358337562,1.14134981,111090.0,111080.0,0.00250347]
[1761358338561,0.83307121,111090.0,111080.0,0.00250347]
[1761358338893,0.8332228,111090.0,111080.0,0.00250347]
[1761358339271,0.82399364,111090.0,111080.0,0.00250347]
[1761358340562,0.83291404,111090.0,111080.0,0.00250347]
[1761358340969,0.82399364,111090.0,111080.0,0.00250347]
[1761358342373,0.83292478,111090.0,111080.0,0.00250347]
[1761358342588,0.82399364,111090.0,111080.0,0.00250347]
[1761358344089,0.83299881,111090.0,111080.0,0.00250347]
[1761358345987,0.82399364,111090.0,111080.0,0.00250347]
[1761358354329,0.80460251,111090.0,111080.0,0.00250347]
[1761358371743,0.89442152,111090.0,111080.0,0.00250347]
[1761358371971,4.25063334,111090.0,111080.0,0.00250347]
[1761358372195,4.30191563,111090.0,111080.0,0.00250347]
[1761358372846,4.30191563,111090.0,111080.0,0.00150347]
[1761358373478,4.30391563,111090.0,111080.0,0.00150347]
[1761358378025,4.37170587,111090.0,111080.0,0.00150347]
[1761358378240,4.68013606,111090.0,111080.0,0.00150347]
[1761358379312,4.37170587,111090.0,111080.0,0.00150347]
[1761358379703,4.46152488,111090.0,111080.0,0.00150347]
[1761358381023,4.37170587,111090.0,111080.0,0.00150347]
[1761358381440,4.34747446,111090.0,111080.0,0.00150347]
[1761358393364,3.75484549,111090.0,111080.0,0.00150347]
[1761358393639,3.66282384,111090.0,111080.0,0.00150347]
[1761358393878,4.25263334,111090.0,111080.0,0.00150347]
[1761358395038,4.27505002,111090.0,111080.0,0.00150347]
[1761358395403,4.29928143,111090.0,111080.0,0.00150347]
[1761358396023,4.27505002,111090.0,111080.0,0.00150347]
[1761358396425,4.29928143,111090.0,111080.0,0.00150347]
[1761358400760,4.29936365,111090.0,111080.0,0.00150347]
[1761358401292,4.33167219,111090.0,111080.0,0.00150347]
[1761358404534,3.98322553,111090.0,111080.0,0.00150347]
[1761358406463,4.32322553,111090.0,111080.0,0.00150347]
[1761358414434,4.35553407,111090.0,111080.0,0.00150347]
[1761358416808,4.42386432,111090.0,111080.0,0.00150347]
[1761358417526,4.35553407,111090.0,111080.0,0.00150347]
[1761358417726,4.35555293,111090.0,111080.0,0.00150347]
[1761358426370,4.33313625,111090.0,111080.0,0.00150347]
[1761358426735,4.401723,111090.0,111080.0,0.00150347]
[1761358427168,4.33313625,111090.0,111080.0,0.00150347]
[1761358427686,3.96396612,111090.0,111080.0,0.00150347]
[1761358427898,4.27243742,111090.0,111080.0,0.00150347]
[1761358428362,4.24819208,111090.0,111080.0,0.00150347]
[1761358429014,4.27243742,111090.0,111080.0,0.00150347]
[1761358429221,4.24819208,111090.0,111080.0,0.00150347]
[1761358429434,4.27782604,111090.0,111080.0,0.00150347]
[1761358447737,0.54143047,111090.0,111080.0,0.00150347]
[1761358448181,0.84990177,111090.0,111080.0,0.00150347]
[1761358451137,0.8305055,111090.0,111080.0,0.00150347]
[1761358456482,0.5220342,111090.0,111080.0,0.00150347]
[1761358456714,0.8305055,111090.0,111080.0,0.00150347]
[1761358460887,0.83040566,111090.0,111080.0,0.00150347]
[1761358461295,0.82840566,111090.0,111080.0,0.00150347]
[1761358461497,0.82840566,111090.0,111080.0,0.00250347]
[1761358467714,0.5200342,111090.0,111080.0,0.00250347]
[1761358467918,0.82840566,111090.0,111080.0,0.00250347]
[1761358498729,0.64733619,111090.0,111080.0,0.00250347]
[1761358498943,0.82737039,111090.0,111080.0,0.00250347]
[1761358500930,0.82737039,111090.0,111080.0,0.02050851]
[1761358506802,0.51899893,111090.0,111080.0,0.02050851]
[1761358507016,0.82737039,111090.0,111080.0,0.02050851]
[1761358507233,0.82737039,111090.0,111080.0,0.20055892]
[1761358507444,0.51899893,111090.0,111080.0,0.00250347]
[1761358507661,0.51899893,111090.0,111080.0,0.02050851]
[1761358507869,0.82737039,111090.0,111080.0,0.02050851]
[1761358508916,0.48840566,111090.0,111080.0,0.02050851]
[1761358509910,0.48840566,111090.0,111080.0,0.20055892]
[1761358510122,0.48840566,111090.0,111080.0,0.18255388]
[1761358512090,0.18003201,111100.0,111080.0,0.58074435]
[1761358512311,0.1800342,111090.0,111080.0,0.27135477]
[1761358512523,0.48840347,111100.0,111080.0,0.27135477]
[1761358512939,0.48840347,111100.0,111080.0,0.27035477]
[1761358513375,0.48840347,111100.0,111080.0,0.27235477]
[1761358514007,0.48840347,111100.0,111080.0,0.27335477]
[1761358514451,0.1800342,111090.0,111080.0,0.27335477]
[1761358515700,0.1800342,111090.0,111080.0,0.27235477]
[1761358516019,0.1800342,111090.0,111080.0,0.27335477]
[1761358516220,0.1800342,111090.0,111080.0,0.27135477]
[1761358516641,0.1800342,111090.0,111080.0,0.27435477]
[1761358516863,0.48840347,111100.0,111080.0,0.27435477]
[1761358517640,0.48840347,111100.0,111090.0,0.00067868]
[1761358518912,0.82840347,111100.0,111090.0,0.00067868]
[1761358519797,0.82840347,111100.0,111090.0,0.00167868]
[1761358520000,0.82840347,111100.0,111090.0,0.00367868]
[1761358522852,0.52003201,111100.0,111090.0,0.00367868]
[1761358529138,0.34,111100.0,111090.0,0.18371288]
[1761358529346,0.520018,111100.0,111090.0,0.2017163]
[1761358529552,0.520018,111100.0,111090.0,0.18371288]
[1761358530301,0.520018,111100.0,111090.0,0.00367868]
[1761358530479,0.520018,111100.0,111090.0,0.2017163]
[1761358530627,0.520018,111100.0,111090.0,0.18371288]
[1761358532045,0.520018,111100.0,111090.0,0.00367868]
[1761358532262,0.520018,111100.0,111090.0,0.0216821]
[1761358534008,0.520018,111100.0,111090.0,0.11150111]
[1761358535305,0.520018,111100.0,111090.0,0.29153531]
[1761358535492,0.520018,111100.0,111090.0,0.27353189]
[1761358537348,0.520018,111100.0,111090.0,0.09349769]
[1761358537547,0.520018,111100.0,111090.0,0.11150111]
[1761358542217,0.520018,111100.0,111090.0,0.29153531]
[1761358542438,0.520018,111100.0,111090.0,0.27353189]
[1761358544809,0.520018,111100.0,111090.0,0.09349769]
[1761358545019,0.520018,111100.0,111090.0,0.11150111]
[1761358546038,0.520018,111100.0,111090.0,0.29153531]
[1761358546237,0.520018,111100.0,111090.0,0.27353189]
[1761358549607,0.520018,111100.0,111090.0,0.09349769]
[1761358549825,0.520018,111100.0,111090.0,0.11150111]
[1761358554247,0.520018,111100.0,111090.0,0.29153531]
[1761358554424,0.520018,111100.0,111090.0,0.27353189]
[1761358562979,0.50659077,111100.0,111090.0,0.27353189]
[1761358566761,0.53363023,111100.0,111090.0,0.27353189]
[1761358572104,0.53363023,111100.0,111090.0,0.09349769]
[1761358576860,0.84192006,111100.0,111090.0,0.09349769]
[1761358577135,0.84192006,111100.0,111090.0,0.27353189]
[1761358577343,0.84192006,111100.0,111090.0,0.09349769]
[1761358580446,0.53363023,111100.0,111090.0,0.09349769]
[1761358584421,0.84192006,111100.0,111090.0,0.09349769]
[1761358584832,0.84192922,111100.0,111090.0,0.09349769]
[1761358595386,0.53363023,111100.0,111090.0,0.27353189]
[1761358595601,0.84192922,111100.0,111090.0,0.09349769]
[1761358597410,0.53363023,111100.0,111090.0,0.27353189]
[1761358597627,0.84192922,111100.0,111090.0,0.27353189]
[1761358598293,0.84179306,111100.0,111090.0,0.27353189]
[1761358601063,0.53349407,111100.0,111090.0,0.27353189]
[1761358601270,0.35347607,111100.0,111090.0,0.27353189]
[1761358601478,0.18898488,111120.0,111100.0,0.18000797]
[1761358601703,0.18898488,111120.0,111100.0,0.75384777]
[1761358601917,0.2160219,111120.0,111100.0,0.73584597]
[1761358602126,0.52432089,111120.0,111100.0,0.73584597]
[1761358602355,0.86432089,111120.0,111110.0,0.01800018]
[1761358602762,0.5560219,111120.0,111110.0,0.01800018]
[1761358602975,0.86432089,111120.0,111110.0,0.01800018]
[1761358603396,0.5560219,111120.0,111110.0,0.01800018]
[1761358603787,0.5560219,111120.0,111110.0,0.19800198]
[1761358604208,0.54902262,111120.0,111110.0,0.28782099]
[1761358604413,0.20702262,111120.0,111110.0,0.26982081]
[1761358604832,0.20702262,111120.0,111110.0,0.27182081]
[1761358605545,0.1799856,111120.0,111110.0,0.27182081]
[1761358605720,0.1799856,111120.0,111110.0,0.27282081]
[1761358606365,0.54701784,111130.0,111110.0,0.27282081]
[1761358607484,0.54701784,111130.0,111110.0,0.27082081]
[1761358607599,0.54701784,111130.0,111110.0,0.26982081]
[1761358608017,0.54701784,111130.0,111110.0,0.27082081]
[1761358608450,0.54801784,111130.0,111110.0,0.27082081]
[1761358612827,0.1799856,111120.0,111110.0,0.27082081]
[1761358613447,0.1799856,111120.0,111110.0,0.5791198]
[1761358613702,0.85531683,111130.0,111110.0,0.5791198]
[1761358614049,0.85531683,111130.0,111110.0,0.5801198]
[1761358614262,0.85531683,111130.0,111110.0,0.27082081]
[1761358614641,0.85531683,111130.0,111110.0,0.27182081]
[1761358614844,0.85531683,111130.0,111110.0,0.27082081]
[1761358615157,0.85631683,111130.0,111110.0,0.26982081]
[1761358615341,0.85631683,111130.0,111110.0,0.27082081]
[1761358615771,0.85631683,111130.0,111110.0,0.5791198]
[1761358615971,0.1799856,111120.0,111110.0,0.5791198]
[1761358617505,0.1799856,111120.0,111110.0,0.5801198]
[1761358618287,0.1799856,111120.0,111110.0,0.27182081]
[1761358623893,0.1799856,111120.0,111110.0,0.09181901]
[1761358624482,0.1799856,111120.0,111110.0,0.27182081]
[1761358625566,0.1799856,111120.0,111110.0,0.09181901]
[1761358625784,0.48828459,111120.0,111110.0,0.09181901]
[1761358626190,0.1799856,111120.0,111110.0,0.09181901]
[1761358628315,0.48828459,111120.0,111110.0,0.09181901]
[1761358631662,0.1799856,111120.0,111110.0,0.09181901]
[1761358631875,0.48828459,111120.0,111110.0,0.09181901]
[1761358636721,0.79658358,111120.0,111110.0,0.09181901]
[1761358636922,0.79658358,111120.0,111110.0,0.002]
[1761358637138,0.82361965,111120.0,111110.0,0.002]
[1761358643090,0.51532066,111120.0,111110.0,0.002]
[1761358644966,0.51521953,111120.0,111110.0,0.002]
[1761358658998,0.85521953,111120.0,111110.0,0.002]
[1761358661165,0.66935422,111120.0,111110.0,0.002]
[1761358661371,0.84933982,111120.0,111110.0,0.002]
[1761358670985,0.54114196,111120.0,111110.0,0.002]
[1761358671198,0.84933982,111120.0,111110.0,0.002]
[1761358678575,0.54114196,111120.0,111110.0,0.09181901]
[1761358681158,0.84933982,111120.0,111110.0,0.002]
[1761358683465,0.54114196,111120.0,111110.0,0.002]
[1761358684984,0.84933982,111120.0,111110.0,0.002]
[1761358686870,0.82818346,111120.0,111110.0,0.02903675]
[1761358699386,0.5199856,111120.0,111110.0,0.02903675]
[1761358706745,0.82817356,111120.0,111110.0,0.02903675]
[1761358708016,0.5199856,111120.0,111110.0,0.02903675]
[1761358708248,0.82817356,111120.0,111110.0,0.02903675]
[1761358727533,0.82817356,111120.0,111110.0,0.002]
[1761358740643,1.13636152,111120.0,111110.0,0.002]
[1761358740837,1.15579914,111120.0,111110.0,0.002]
[1761358745819,0.53942322,111120.0,111110.0,0.002]
[1761358745948,0.84761118,111120.0,111110.0,0.002]
[1761358751114,0.82817356,111120.0,111110.0,0.002]
[1761358759653,0.5199856,111120.0,111110.0,0.002]
[1761358760154,0.82817356,111120.0,111110.0,0.002]
[1761358763971,0.5199856,111120.0,111110.0,0.002]
[1761358788013,0.5199856,111120.0,111110.0,0.02903675]
[1761358806503,0.1800018,111110.0,111100.0,0.18024271]
[1761358806655,0.1800018,111110.0,111100.0,0.29709847]
[1761358807740,0.1800018,111110.0,111100.0,0.30009847]
[1761358807951,0.5199856,111120.0,111100.0,0.30009847]
[1761358808836,0.5199856,111120.0,111100.0,0.29909847]
[1761358809025,0.5199856,111120.0,111100.0,0.29709847]
[1761358809237,0.5199856,111120.0,111100.0,0.29909847]
[1761358810035,0.5199856,111120.0,111100.0,0.60725714]
[1761358810243,0.1800018,111110.0,111100.0,0.60725714]
[1761358810987,0.1800018,111110.0,111100.0,0.29909847]
[1761358811222,0.5199856,111120.0,111100.0,0.29809847]
[1761358811419,0.5199856,111120.0,111100.0,0.29909847]
[1761358811626,0.5199856,111120.0,111100.0,0.29809847]
[1761358811832,0.1800018,111110.0,111100.0,0.30009847]
[1761358811988,0.1800018,111110.0,111100.0,0.29909847]
[1761358812196,0.1800018,111110.0,111100.0,0.29709847]
[1761358812392,0.1800018,111110.0,111100.0,0.29809847]
[1761358813398,0.5199856,111120.0,111100.0,0.29809847]
[1761358813600,0.5199856,111120.0,111100.0,0.29709847]
[1761358814045,0.5199856,111120.0,111100.0,0.29809847]
[1761358814447,0.5199856,111120.0,111100.0,0.29709847]
[1761358814657,0.5199856,111120.0,111100.0,0.29909847]
[1761358814867,0.5199856,111120.0,111100.0,0.29809847]
[1761358816351,0.5199856,111120.0,111110.0,0.08981901]
[1761358816808,0.5199856,111120.0,111110.0,0.11685481]
[1761358817366,0.5199856,111120.0,111110.0,0.11785481]
[1761358837317,0.5199856,111120.0,111110.0,0.29785661]
[1761358838156,0.5199856,111120.0,111110.0,0.11785481]
[1761358844383,0.82813166,111120.0,111110.0,0.11785481]
[1761358844576,0.5199856,111120.0,111110.0,0.11785481]
[1761358844786,0.82813166,111120.0,111110.0,0.11785481]
[1761358851495,0.82813166,111120.0,111110.0,0.0280358]
[1761358851708,1.13627772,111120.0,111110.0,0.0280358]
[1761358851937,0.82813166,111120.0,111110.0,0.0280358]
[1761358889789,1.15573158,111120.0,111110.0,0.001]
[1761358890069,0.84758552,111120.0,111110.0,0.001]
[1761358890493,0.82813166,111120.0,111110.0,0.001]
[1761358890903,0.82818288,111120.0,111110.0,0.001]
[1761358893544,0.84763218,111120.0,111110.0,0.001]
[1761358894860,0.5394349,111120.0,111110.0,0.001]
[1761358895026,0.5199856,111120.0,111110.0,0.001]
[1761358901619,0.82818288,111120.0,111110.0,0.001]
[1761358902569,0.85521983,111120.0,111110.0,0.001]
[1761358906953,0.54702255,111120.0,111110.0,0.001]
[1761358907306,0.85521983,111120.0,111110.0,0.001]
[1761358908036,0.82818288,111120.0,111110.0,0.001]
[1761358908519,0.82803889,111120.0,111110.0,0.001]
[1761358915720,0.84748719,111120.0,111110.0,0.001]
[1761358916045,0.87452506,111120.0,111110.0,0.001]
[1761358926303,0.84748719,111120.0,111110.0,0.001]
[1761358927323,0.87452506,111120.0,111110.0,0.001]
[1761358931886,0.85507676,111120.0,111110.0,0.001]
[1761358932006,0.87452624,111120.0,111110.0,0.001]
[1761358932214,0.85507676,111120.0,111110.0,0.001]
[1761358932488,0.87452628,111120.0,111110.0,0.001]
[1761358933420,0.85507676,111120.0,111110.0,0.001]
[1761358934186,0.87452632,111120.0,111110.0,0.001]
[1761358935103,0.85507676,111120.0,111110.0,0.001]
[1761358943486,0.54687948,111120.0,111110.0,0.001]
[1761358943690,0.85507676,111120.0,111110.0,0.001]
[1761358952700,0.85507327,111120.0,111110.0,0.001]
[1761358954127,0.54687948,111120.0,111110.0,0.001]
[1761358954345,0.85507327,111120.0,111110.0,0.001]
[1761358962031,0.87452494,111120.0,111110.0,0.001]
[1761358983296,1.18271873,111120.0,111110.0,0.001]
[1761359014759,0.87456626,111120.0,111110.0,0.001]
[1761359016226,0.56633115,111120.0,111110.0,0.001]
[1761359016433,0.87456626,111120.0,111110.0,0.001]
[1761359016648,0.87528376,111120.0,111110.0,0.001]
[1761359020203,0.56704865,111120.0,111110.0,0.001]
[1761359020589,0.87528376,111120.0,111110.0,0.001]
[1761359028755,0.56704865,111120.0,111110.0,0.001]
[1761359028897,0.85583209,111120.0,111110.0,0.001]
[1761359031760,0.54759698,111120.0,111110.0,0.001]
[1761359031964,0.85583209,111120.0,111110.0,0.001]
[1761359050319,0.87528032,111120.0,111110.0,0.001]
[1761359074127,1.18351543,111120.0,111110.0,0.001]
[1761359076643,1.18362479,111120.0,111110.0,0.001]
[1761359077305,0.56704521,111120.0,111110.0,0.001]
[1761359077506,1.18362479,111120.0,111110.0,0.001]
[1761359089432,1.1836279,111120.0,111110.0,0.001]
[1761359089852,1.1829104,111120.0,111110.0,0.001]
[1761359093490,4.49120019,111120.0,111110.0,0.001]
[1761359093692,4.1829104,111120.0,111110.0,0.001]
[1761359095806,0.1800018,111110.0,111100.0,0.00022791]
[1761359095972,0.5063007,111110.0,111100.0,0.00022791]
[1761359096180,0.48829159,111110.0,111100.0,0.00022791]
[1761359096526,0.51533078,111110.0,111100.0,0.00022791]
[1761359097129,0.51533078,111110.0,111100.0,0.00322791]
[1761359099365,0.82362057,111110.0,111100.0,0.00322791]
[1761359099823,1.16362057,111110.0,111100.0,0.00322791]
[1761359100046,1.1830709,111110.0,111100.0,0.00322791]
[1761359101119,1.16362057,111110.0,111100.0,0.00322791]
[1761359102173,4.54963499,111110.0,111100.0,0.00322791]
[1761359102370,4.72464209,111110.0,111100.0,0.00322791]
[1761359102585,4.72571005,111110.0,111100.0,0.00322791]
[1761359102824,4.35914128,111110.0,111100.0,0.00322791]
[1761359103153,4.63512253,111110.0,111100.0,0.00222791]
[1761359103309,4.63512253,111110.0,111100.0,0.00122791]
[1761359103728,4.63612253,111110.0,111100.0,0.00122791]
[1761359104771,4.63612253,111110.0,111100.0,0.00022791]
[1761359105181,4.63612253,111110.0,111100.0,0.00122791]
[1761359108196,4.61180835,111110.0,111100.0,0.00122791]
[1761359111055,4.61176134,111110.0,111100.0,0.00122791]
[1761359116892,4.30347155,111110.0,111100.0,0.00122791]
[1761359122911,4.61176134,111110.0,111100.0,0.00122791]
[1761359123129,4.30347155,111110.0,111100.0,0.00122791]
[1761359123331,4.32771985,111110.0,111100.0,0.00122791]
[1761359125300,4.70014808,111110.0,111100.0,1e-08]
[1761359125414,4.60637631,111110.0,111100.0,1e-08]
[1761359125615,4.63600964,111110.0,111100.0,1e-08]
[1761359128130,4.66831818,111110.0,111100.0,1e-08]
[1761359128450,4.36002839,111110.0,111100.0,1e-08]
[1761359130317,4.66831818,111110.0,111100.0,1e-08]
[1761359130466,4.36002839,111110.0,111100.0,1e-08]
[1761359132113,4.33578009,111110.0,111100.0,1e-08]
[1761359136463,4.64406988,111110.0,111100.0,1e-08]
[1761359136944,4.02762586,111110.0,111100.0,1e-08]
[1761359156612,4.07626672,111110.0,111100.0,1e-08]
[1761359156840,4.16608573,111110.0,111100.0,1e-08]
[1761359158672,4.07626672,111110.0,111100.0,1e-08]
[1761359158857,4.02762586,111110.0,111100.0,1e-08]
[1761359178076,4.05194856,111110.0,111100.0,1e-08]
[1761359178279,3.90018768,111110.0,111100.0,1e-08]
[1761359178481,0.87586498,111110.0,111100.0,1e-08]
[1761359178620,0.56743963,111110.0,111100.0,1e-08]
[1761359179027,0.22743963,111110.0,111100.0,1e-08]
[1761359179234,0.54804099,111110.0,111100.0,1e-08]
[1761359180019,0.5210018,111110.0,111100.0,1e-08]
[1761359196369,0.1810018,111110.0,111100.0,0.19801981]
[1761359196511,0.001,111110.0,111100.0,0.3060193]
[1761359196723,0.1810018,111110.0,111100.0,0.3060193]
[1761359197147,0.001,111110.0,111100.0,0.3060193]
[1761359197409,0.001,111110.0,111100.0,0.30601929]
[1761359197569,0.1800018,111110.0,111100.0,0.30601929]
[1761359197769,0.1800018,111110.0,111100.0,0.30701929]
[1761359197987,0.1800018,111110.0,111100.0,0.12900129]
[1761359199014,0.1800018,111110.0,111100.0,0.30901929]
[1761359205895,0.1800018,111110.0,111100.0,0.12900129]
[1761359206353,0.48819521,111110.0,111100.0,0.12900129]
[1761359210495,0.1800018,111110.0,111100.0,0.12900129]
[1761359214383,0.1800018,111110.0,111100.0,0.13300129]
[1761359215217,0.48819521,111110.0,111100.0,0.13300129]
[1761359222836,0.49219521,111110.0,111100.0,0.13300129]
[1761359225579,0.49219521,111110.0,111100.0,0.31301929]
[1761359226000,0.1840018,111110.0,111100.0,0.31301929]
[1761359226227,0.49219521,111110.0,111100.0,0.31301929]
[1761359226442,0.004,111110.0,111100.0,0.31301929]
[1761359227619,0.1840018,111110.0,111100.0,0.31301929]
[1761359229602,0.004,111110.0,111100.0,0.31301929]
[1761359231588,0.1840018,111110.0,111100.0,0.31301929]
[1761359233938,0.004,111110.0,111100.0,0.31301929]
[1761359236703,0.1840018,111110.0,111100.0,0.31301929]
[1761359242057,0.004,111110.0,111100.0,0.31301929]
[1761359242776,0.1840018,111110.0,111100.0,0.31301929]
[1761359286735,0.21103885,111110.0,111100.0,0.31301929]
[1761359291669,0.03103705,111110.0,111100.0,0.31301929]
[1761359292063,0.21103885,111110.0,111100.0,0.31301929]
[1761359292748,0.03103705,111110.0,111100.0,0.31301929]
[1761359297564,0.21103885,111110.0,111100.0,0.13300129]
[1761359297797,0.21103885,111110.0,111100.0,0.33102109]
[1761359297943,0.21103885,111110.0,111100.0,0.31301929]
[1761359305349,0.51924357,111110.0,111100.0,0.13300129]
[1761359318278,0.51924357,111110.0,111100.0,0.09681901]
[1761359320817,0.5193157,111110.0,111100.0,0.09681901]
[1761359325001,0.21103885,111110.0,111100.0,0.09681901]
[1761359325202,0.5193157,111110.0,111100.0,0.09681901]
[1761359336655,0.21103885,111110.0,111100.0,0.09681901]
[1761359336879,0.5193157,111110.0,111100.0,0.09681901]
[1761359382877,0.21103885,111110.0,111100.0,0.09681901]
[1761359387095,0.51927474,111110.0,111100.0,0.09681901]
[1761359389925,0.21103885,111110.0,111100.0,0.09681901]
[1761359400241,0.21103885,111110.0,111100.0,0.27683701]
[1761359400565,0.21103885,111110.0,111100.0,0.09681901]
[1761359403957,0.03103705,111110.0,111100.0,0.63925698]
[1761359404156,0.004,111110.0,111100.0,0.62125518]
[1761359404401,0.004,111110.0,111100.0,0.31301929]
[1761359404793,0.004,111110.0,111100.0,0.31201929]
[1761359405137,0.004,111110.0,111100.0,0.31301929]
[1761359405545,0.004,111110.0,111100.0,0.31101929]
[1761359405750,0.004,111110.0,111100.0,0.46869929]
[1761359406156,0.004,111110.0,111100.0,0.47169929]
[1761359406815,0.004,111110.0,111100.0,0.49873361]
[1761359407015,0.004,111110.0,111100.0,0.8069695]
[1761359408432,0.004,111110.0,111100.0,0.49873361]
[1761359408730,0.004,111110.0,111100.0,0.8069695]
[1761359411386,0.004,111110.0,111100.0,0.85533028]
[1761359414203,0.004,111110.0,111100.0,0.85433028]
[1761359414404,0.004,111110.0,111100.0,0.85633028]
[1761359414622,0.004,111110.0,111100.0,0.85333028]
[1761359414819,0.004,111110.0,111100.0,0.85933028]
[1761359417025,0.004,111110.0,111100.0,1.00903028]
[1761359419578,0.004,111110.0,111100.0,0.70079439]
[1761359419791,0.004,111110.0,111100.0,1.00903028]
[1761359428918,0.004,111110.0,111100.0,0.85933028]
[1761359431680,0.004,111110.0,111100.0,0.70165028]
[1761359431860,0.004,111110.0,111100.0,0.34505361]
[1761359432061,0.004,111110.0,111100.0,0.50273361]
[1761359434773,0.004,111110.0,111100.0,0.65243361]
[1761359438131,0.004,111110.0,111100.0,0.9606695]
[1761359439019,0.004,111110.0,111100.0,1.00903028]
[1761359442719,0.004,111110.0,111100.0,1.31702469]
[1761359448662,0.00391,111110.0,111100.0,1.31702469]
[1761359502933,0.00391,111110.0,111100.0,1.00889479]
[1761359521853,0.00391,111110.0,111100.0,0.70079439]
[1761359522098,0.00391,111110.0,111100.0,1.00889479]
[1761359522315,0.00391,111110.0,111100.0,0.70079439]
[1761359522538,0.00391,111110.0,111100.0,1.00889479]
[1761359528055,0.00391,111110.0,111100.0,0.70079439]
[1761359533263,0.00391,111110.0,111100.0,0.69879439]
[1761359533484,0.00391,111110.0,111100.0,0.69279439]
[1761359533696,0.00391,111110.0,111100.0,0.69779439]
[1761359551930,0.00391,111110.0,111100.0,0.51777639]
[1761359553285,0.00391,111110.0,111100.0,0.69779439]
[1761359555340,0.00391,111110.0,111100.0,1.00589479]
[1761359555548,0.00391,111110.0,111100.0,0.69779439]
[1761359555834,0.00391,111110.0,111100.0,1.00589479]